Workbook

Sheet Points
B3: Use Interpolate
B5: Idea of LLCR Factor to Make Curved

Sheet Curved DSCR
A1: Inputs
G2: EIRR | H2: Avg Loan Life | R2: Basic Idea: Increase the Slope and Longer Average Life
C3: Min DSCR | D3: 1.2 | F3: Sloped DSCR | G3: =D44 -> 0.1909564766 | H3: =F32 -> 8.49999993
C4: Debt Percent | D4: 0.82 | F4: Flat DSCR | G4: =Flat!D23 -> 0.1589389763 | H4: =Flat!D20 -> 7.854971411 | R4: Just find until meets criteria
C5: Project Cost | D5: 900 | R5: Not need to be actual
C6: Target Debt Amount | D6: =D5*D4 -> 738
C7: PV of CFADS | D7: =NPV(D23,E19:P19) -> 1028.571429 | R7: Demonstrate with solver
C8: LLCR | D8: =D7/D6 -> 1.393728223 | J8: Difference
C9: Target Avg Debt Life | D9: 8.5 | E9: =F32 -> 8.49999993 | G9: Average Life | J9: =D9-E9 -> 7.038723382e-08 | R9: Input boundaries: LLCR Factor
C10: LLCR Factor | D10: 1.307276814 | G10: Debt Balance | J10: =D24-D6 -> -6.822251862e-06
C11: Tenure | D11: 12
C12: Max LLCR Factor | D12: 10
C13: CFADS | E13: =E19 -> 90 | F13: 94.5 | G13: 99.225 | H13: 104.18625 | I13: 109.3955625 | J13: 114.8653406 | K13: 120.6086077 | L13: 126.639038 | M13: 132.9709899 | N13: 139.6195394 | O13: 146.6005164 | P13: 153.9305422
C14: Period | D14: 1 | E14: 9.18925749 | F14: last date | R14: Start with Most Extreme Slope
C15: Max/Min DSCR | D15: =LLCR*LLCR_Fac -> 1.82198859 | E15: =Min_DSCR -> 1.2 | R15: Goal Seek on End Date to Find
R16: If too much debt in extreme case, increase the LLCR or exit function
R17: Increment the LLCR until projected debt is below target
A18: Target Debt Service | E18: 1 | F18: 2 | G18: 3 | H18: 4 | I18: 5 | J18: 6 | K18: 7 | L18: 8 | M18: 9 | N18: 10 | O18: 11 | P18: 12 | R18: Once the computed debt is below the target debt, make a dynamic goal seek until the computed = target
C19: CFADS | E19: 90 | F19: =E19*1.05 -> 94.5 | G19: =F19*1.05 -> 99.225 | H19: 104.18625 | I19: 109.3955625 | J19: 114.8653406 | K19: 120.6086077 | L19: 126.639038 | M19: 132.9709899 | N19: 139.6195394 | O19: 146.6005164 | P19: 153.9305422 | R19: Check the Average loan life. If the computed loan life is more than the target, then reduce the LLCR Factor and repeat the process
C20: DSCR Target | E20: =interpolate_look_up(E18,14:14,15:15) -> 1.82198859 | F20: 1.731406442 | G20: 1.645327683 | H20: 1.563528424 | I20: 1.485795904 | J20: 1.411927941 | K20: 1.341732404 | L20: 1.275026715 | M20: 1.211637373 | N20: 1.2 | O20: 1.2 | P20: 1.2
C21: Target Debt Service | D21: =MAX(D8,D3) -> 1.393728223 | E21: =E19/E20 -> 49.39657716 | F21: =F19/F20 -> 54.57990552 | G21: 60.30713579 | H21: 66.6353412 | I21: 73.62758384 | J21: 81.35354311 | K21: 89.89021004 | L21: 99.32265458 | M21: 109.7448733 | N21: 116.3496162 | O21: 122.167097 | P21: 128.2754519
C23: Interest Rate | D23: 0.05
C24: PV of Debt Service | D24: =NPV(D23,E21:P21) -> 737.9999932 | R24: Allow with flat or growth interpolate
A26: Debt Balance
C27: Opening Balance | E27: =D29 -> 738 | F27: =E29 -> 725.5034228 | G27: 707.1986885 | H27: 682.2514871 | I27: 649.7287203 | J27: 608.5875724 | K27: 557.6634079 | L27: 495.6563683 | M27: 421.1165321 | N27: 332.4274854 | O27: 232.6992435 | P27: 122.1671087
C28: Less: Repayment | E28: =E21-E30 -> 12.49657716 | F28: =F21-F30 -> 18.30473438 | G28: 24.94720136 | H28: 32.52276684 | I28: 41.14114783 | J28: 50.92416449 | K28: 62.00703964 | L28: 74.53983616 | M28: 88.6890467 | N28: 99.72824193 | O28: 110.5321348 | P28: 122.1670964
C29: Closing Balance | D29: =D6 -> 738 | E29: =E27-E28 -> 725.5034228 | F29: =F27-F28 -> 707.1986885 | G29: 682.2514871 | H29: 649.7287203 | I29: 608.5875724 | J29: 557.6634079 | K29: 495.6563683 | L29: 421.1165321 | M29: 332.4274854 | N29: 232.6992435 | O29: 122.1671087 | P29: 1.225178383e-05 | R29: Demonstrate with
C30: Interest | D30: =D23 -> 0.05 | E30: =$D$30*E27 -> 36.9 | F30: =$D$30*F27 -> 36.27517114 | G30: 35.35993442 | H30: 34.11257435 | I30: 32.48643601 | J30: 30.42937862 | K30: 27.8831704 | L30: 24.78281841 | M30: 21.05582661 | N30: 16.62137427 | O30: 11.63496218 | P30: 6.108355434
R31: Outside is LLCR Factor
C32: Average Loan Life with Sumproduct | F32: =SUMPRODUCT(E28:P28,E18:P18)/D24 -> 8.49999993 | R32: Inside is last date
C34: Sum of Opening Balance/Initial | E34: =SUM(E27:P27) -> 6273.000037 | F34: =SUM(E27:P27)/D29 -> 8.50000005 | R34: Start with high LLCR Factor
R35: Move down until hit Averge loan life or 1
R36: Each time re-run the debt sizing function
R38: If 1 then stop
R39: If hit, then reverse the process
C43: Equity CF | D43: =D29-D5 -> -162 | E43: =E19-E28-E30 -> 40.60342284 | F43: 39.92009448 | G43: 38.91786421 | H43: 37.5509088 | I43: 35.76797866 | J43: 33.51179752 | K43: 30.71839762 | L43: 27.31638346 | M43: 23.22611663 | N43: 23.26992324 | O43: 24.4334194 | P43: 25.65509037
C44: IRR | D44: =IRR(43:43) -> 0.1909564766
C46: Average DSCR | D46: =AVERAGE(20:20) -> 1.424030956
C49: PV Factor | D49: =D23 -> 0.05 | E49: =1/(1+$D$49)^E18 -> 0.9523809524 | F49: =1/(1+$D$49)^F18 -> 0.9070294785 | G49: 0.8638375985 | H49: 0.8227024748 | I49: 0.7835261665 | J49: 0.7462153966 | K49: 0.7106813301 | L49: 0.676839362 | M49: 0.6446089162 | N49: 0.6139132535 | O49: 0.5846792891 | P49: 0.5568374182
A51: =D8 -> 1.393728223 | C51: Debt PV | E51: =E49*E27 -> 702.8571429 | F51: =F49*F27 -> 658.0529912 | G51: 610.9048167 | H51: 561.2899869 | I51: 509.0794534 | J51: 454.1374167 | K51: 396.3209725 | L51: 335.4797401 | M51: 271.4554714 | N51: 204.0816392 | O51: 136.0544283 | P51: 68.02721738
C52: Weighting | E52: =E51/SUM(51:51) -> 0.1431733171 | F52: =F51/SUM(51:51) -> 0.1340466275 | G52: 0.124442456 | H52: 0.1143358222 | I52: 0.1037004387 | J52: 0.09250864283 | K52: 0.08073132479 | L52: 0.06833785173 | M52: 0.05529598822 | N52: 0.04157181233 | O52: 0.027714542 | P52: 0.01385727166
C53: Weighted Average | E53: =SUMPRODUCT(52:52,20:20) -> 1.523381953
C55: CFADS PV | E55: =E49*E19 -> 85.71428571 | F55: =F49*F19 -> 85.71428571 | G55: 85.71428571 | H55: 85.71428571 | I55: 85.71428571 | J55: 85.71428571 | K55: 85.71428571 | L55: 85.71428571 | M55: 85.71428571 | N55: 85.71428571 | O55: 85.71428571 | P55: 85.71428571
C56: Weighting | E56: =E55/SUM(55:55) -> 0.08333333333 | F56: =F55/SUM(55:55) -> 0.08333333333 | G56: 0.08333333333 | H56: 0.08333333333 | I56: 0.08333333333 | J56: 0.08333333333 | K56: 0.08333333333 | L56: 0.08333333333 | M56: 0.08333333333 | N56: 0.08333333333 | O56: 0.08333333333 | P56: 0.08333333333
C57: Weighted Average | E57: =SUMPRODUCT(56:56,20:20) -> 1.424030956
E59: =Flat!E22 -> 25.425 | F59: =Flat!F22 -> 26.69625 | G59: =Flat!G22 -> 28.0310625 | H59: =Flat!H22 -> 29.43261562 | I59: =Flat!I22 -> 30.90424641 | J59: =Flat!J22 -> 32.44945873 | K59: =Flat!K22 -> 34.07193166 | L59: =Flat!L22 -> 35.77552825 | M59: =Flat!M22 -> 37.56430466 | N59: =Flat!N22 -> 39.44251989 | O59: =Flat!O22 -> 41.41464589 | P59: =Flat!P22 -> 43.48537818
C61: LLCR | D61: =D7/D24 -> 1.393728236
C63: Debt Service | E63: =E21*E49 -> 47.0443592 | F63: =F21*F49 -> 49.50558324 | G63: 52.09557135 | H63: 54.82106011 | I63: 57.68913851 | J63: 60.70726644 | K63: 63.88329404 | L63: 67.22548216 | M63: 70.74252384 | N63: 71.42857143 | O63: 71.42857143 | P63: 71.42857143
C64: Weight | E64: =E63/SUM(63:63) -> 0.06374574477 | F64: =F63/SUM(63:63) -> 0.06708073671 | G64: 0.07059020574 | H64: 0.07428327997 | I64: 0.07816956511 | J64: 0.08225916938 | K64: 0.08656272985 | L64: 0.09109144008 | M64: 0.09585707926 | N64: 0.09678668305 | O64: 0.09678668305 | P64: 0.09678668305
C65: Weighted Average | D65: =SUMPRODUCT(64:64,20:20) -> 1.393728236

Sheet Test
A2: LLCR Factor | B2: 8 | C2: Average Life | D2: 9.341829552 | E2: Increment | F2: 1 | G2: Reducing | H2: Prior Increment | I2: 1 | J2: Reduce: Base, Not Reversed | K2: 0
A3: LLCR Factor | B3: 7 | C3: Average Life | D3: 9.33380164 | E3: Increment | F3: 1 | G3: Reducing | H3: Prior Increment | I3: 1 | J3: Reduce: Base, Not Reversed | K3: 0
A4: LLCR Factor | B4: 6 | C4: Average Life | D4: 9.324506897 | E4: Increment | F4: 1 | G4: Reducing | H4: Prior Increment | I4: 1 | J4: Reduce: Base, Not Reversed | K4: 0
A5: LLCR Factor | B5: 5 | C5: Average Life | D5: 9.312844693 | E5: Increment | F5: 1 | G5: Reducing | H5: Prior Increment | I5: 1 | J5: Reduce: Base, Not Reversed | K5: 0
A6: LLCR Factor | B6: 4 | C6: Average Life | D6: 9.297732983 | E6: Increment | F6: 1 | G6: Reducing | H6: Prior Increment | I6: 1 | J6: Reduce: Base, Not Reversed | K6: 0
A7: LLCR Factor | B7: 3 | C7: Average Life | D7: 9.270133504 | E7: Increment | F7: 1 | G7: Reducing | H7: Prior Increment | I7: 1 | J7: Reduce: Base, Not Reversed | K7: 0
A8: LLCR Factor | B8: 2 | C8: Average Life | D8: 9.212992043 | E8: Increment | F8: 1 | G8: Reducing | H8: Prior Increment | I8: 1 | J8: Reduce: Base, Not Reversed | K8: 0
A9: LLCR Factor | B9: 1.5 | C9: Average Life | D9: 9.066478829 | E9: Increment | F9: 0.5 | G9: Reducing | H9: Prior Increment | I9: 1 | J9: Reduce: Cut Difference | K9: 1
A10: LLCR Factor | B10: 1.625 | C10: Average Life | D10: 8.824038499 | E10: Increment | F10: 0.125 | G10: Increasing | H10: Prior Increment | I10: 0.5 | J10: Increase: Reversed Base , LLCR Reduce True | K10: 2 | L10: 4
A11: LLCR Factor | B11: 1.75 | C11: Average Life | D11: 8.91360752 | E11: Increment | F11: 0.125 | G11: Increasing | H11: Prior Increment | I11: 0.125 | J11: Increase: Reversed Base , LLCR Reduce True | K11: 2 | L11: 4

Sheet Flat
C2: Min DSCR | D2: =Min_DSCR -> 1.2
C4: Project | D4: 900
C5: Max Debt | D5: =Max_Debt -> 738
C6: PV of CFADS | D6: =NPV(D13,E11:P11) -> 1028.571429
C7: LLCR | D7: =D6/D5 -> 1.393728223
C8: Target Avg Loan Life | D8: 9
E10: 1 | F10: 2 | G10: 3 | H10: 4 | I10: 5 | J10: 6 | K10: 7 | L10: 8 | M10: 9 | N10: 10 | O10: 11 | P10: 12
C11: CFADS | E11: ='Curved DSCR'!E19 -> 90 | F11: =E11*1.05 -> 94.5 | G11: =F11*1.05 -> 99.225 | H11: 104.18625 | I11: 109.3955625 | J11: 114.8653406 | K11: 120.6086077 | L11: 126.639038 | M11: 132.9709899 | N11: 139.6195394 | O11: 146.6005164 | P11: 153.9305422
C12: Target | D12: =MAX(D7,D2) -> 1.393728223 | E12: =E11/$D$12 -> 64.575 | F12: =F11/$D$12 -> 67.80375 | G12: 71.1939375 | H12: 74.75363438 | I12: 78.49131609 | J12: 82.4158819 | K12: 86.53667599 | L12: 90.86350979 | M12: 95.40668528 | N12: 100.1770195 | O12: 105.1858705 | P12: 110.4451641
C13: Interest | D13: ='Curved DSCR'!D23 -> 0.05 | E13: =NPV(D13,E12:P12) -> 738
C15: Open | E15: =D17 -> 738 | F15: =E17 -> 710.325 | G15: 678.0375 | H15: 640.7454375 | I15: 598.029075 | J15: 549.4392127 | K15: 494.4952914 | L15: 432.68338 | M15: 363.4540392 | N15: 286.2200558 | O15: 200.3540391 | P15: 105.1858705
C16: Less Repayment | E16: =E12-E18 -> 27.675 | F16: =F12-F18 -> 32.2875 | G16: 37.2920625 | H16: 42.7163625 | I16: 48.58986234 | J16: 54.94392127 | K16: 61.81191142 | L16: 69.22934079 | M16: 77.23398332 | N16: 85.86601675 | O16: 95.16816857 | P16: 105.1858705
C17: Closing | D17: =D5 -> 738 | E17: =E15-E16 -> 710.325 | F17: =F15-F16 -> 678.0375 | G17: 640.7454375 | H17: 598.029075 | I17: 549.4392127 | J17: 494.4952914 | K17: 432.68338 | L17: 363.4540392 | M17: 286.2200558 | N17: 200.3540391 | O17: 105.1858705 | P17: -5.542233339e-13
C18: Interest | D18: =D13 -> 0.05 | E18: =$D$18*E15 -> 36.9 | F18: =$D$18*F15 -> 35.51625 | G18: 33.901875 | H18: 32.03727188 | I18: 29.90145375 | J18: 27.47196063 | K18: 24.72476457 | L18: 21.634169 | M18: 18.17270196 | N18: 14.31100279 | O18: 10.01770195 | P18: 5.259293526
C20: Avg Loan Life | D20: =SUMPRODUCT(E16:P16,E10:P10)/D17 -> 7.854971411
C22: Equity CF | D22: =D17-D4 -> -162 | E22: =E11-E16-E18 -> 25.425 | F22: =F11-F16-F18 -> 26.69625 | G22: 28.0310625 | H22: 29.43261562 | I22: 30.90424641 | J22: 32.44945873 | K22: 34.07193166 | L22: 35.77552825 | M22: 37.56430466 | N22: 39.44251989 | O22: 41.41464589 | P22: 43.48537818
C23: IRR | D23: =IRR(22:22) -> 0.1589389763

Sheet Sculpt
C2: Min DSCR | D2: =Min_DSCR -> 1.2
C4: Project | D4: 900
C5: Max Debt | D5: =Max_Debt -> 738
C6: PV of CFADS | D6: =NPV(D13,E11:P11) -> 1028.571429
C7: LLCR | D7: =D6/D5 -> 1.393728223
C8: Target Avg Loan Life | D8: 9
E10: 1 | F10: 2 | G10: 3 | H10: 4 | I10: 5 | J10: 6 | K10: 7 | L10: 8 | M10: 9 | N10: 10 | O10: 11 | P10: 12
C11: CFADS | E11: ='Curved DSCR'!E19 -> 90 | F11: =E11*1.05 -> 94.5 | G11: =F11*1.05 -> 99.225 | H11: 104.18625 | I11: 109.3955625 | J11: 114.8653406 | K11: 120.6086077 | L11: 126.639038 | M11: 132.9709899 | N11: 139.6195394 | O11: 146.6005164 | P11: 153.9305422
C12: Target | D12: =D2 -> 1.2 | E12: =E11/$D$12 -> 75 | F12: =F11/$D$12 -> 78.75 | G12: 82.6875 | H12: 86.821875 | I12: 91.16296875 | J12: 95.72111719 | K12: 100.507173 | L12: 105.5325317 | M12: 110.8091583 | N12: 116.3496162 | O12: 122.167097 | P12: 128.2754519
C13: Interest | D13: ='Curved DSCR'!D23 -> 0.05 | E13: =NPV(D13,E12:P12) -> 857.1428571
C15: Open | E15: =D17 -> 857.1428571 | F15: =E17 -> 825 | G15: 787.5 | H15: 744.1875 | I15: 694.575 | J15: 638.1407812 | K15: 574.3267031 | L15: 502.5358652 | M15: 422.1301268 | N15: 332.4274749 | O15: 232.6992324 | P15: 122.167097
C16: Less Repayment | E16: =E12-E18 -> 32.14285714 | F16: =F12-F18 -> 37.5 | G16: 43.3125 | H16: 49.6125 | I16: 56.43421875 | J16: 63.81407813 | K16: 71.79083789 | L16: 80.40573844 | M16: 89.70265194 | N16: 99.72824246 | O16: 110.5321354 | P16: 122.167097
C17: Closing | D17: =E13 -> 857.1428571 | E17: =E15-E16 -> 825 | F17: =F15-F16 -> 787.5 | G17: 744.1875 | H17: 694.575 | I17: 638.1407812 | J17: 574.3267031 | K17: 502.5358652 | L17: 422.1301268 | M17: 332.4274749 | N17: 232.6992324 | O17: 122.167097 | P17: -5.258016245e-13
C18: Interest | D18: =D13 -> 0.05 | E18: =$D$18*E15 -> 42.85714286 | F18: =$D$18*F15 -> 41.25 | G18: 39.375 | H18: 37.209375 | I18: 34.72875 | J18: 31.90703906 | K18: 28.71633516 | L18: 25.12679326 | M18: 21.10650634 | N18: 16.62137374 | O18: 11.63496162 | P18: 6.10835485
C20: Sumproduct | D20: =SUMPRODUCT(E16:P16,E10:P10) -> 6732.832638
C21: Avg Loan Life | D21: =SUMPRODUCT(E16:P16,E10:P10)/D17 -> 7.854971411
C23: Equity CF | D23: =D17-D4 -> -42.85714286 | E23: =E11-E16-E18 -> 15 | F23: =F11-F16-F18 -> 15.75 | G23: 16.5375 | H23: 17.364375 | I23: 18.23259375 | J23: 19.14422344 | K23: 20.10143461 | L23: 21.10650634 | M23: 22.16183166 | N23: 23.26992324 | O23: 24.4334194 | P23: 25.65509037
C24: IRR | D24: =IRR(23:23) -> 0.3876718378
